bitfinex-derivatives/quotes_BTCF0:USTF0_20240830
["timestamp","ask_amount","ask_price","bid_price","bid_amount"]
[1725044280798,0.0002519,59357.0,59356.0,0.27425]
[1725044281412,0.0844999,59357.0,59356.0,0.27425]
[1725044282420,0.0002519,59357.0,59356.0,0.27425]
[1725044283110,0.0002519,59357.0,59356.0,0.77969]
[1725044283409,0.0002519,59357.0,59356.0,1.46394]
[1725044283803,0.0002519,59357.0,59347.0,0.1353]
[1725044283804,0.3610519,59357.0,59341.0,0.3608]
[1725044284005,0.3610519,59357.0,59340.0,0.3608]
[1725044284006,0.19,59350.0,59340.0,0.3608]
[1725044284201,0.19,59350.0,59343.0,0.084268]
[1725044284509,0.3608,59352.0,59343.0,0.084268]
[1725044284712,0.19,59354.0,59346.0,0.56211563]
[1725044284903,0.5510519,59357.0,59346.0,0.56211563]
[1725044285210,0.19,59354.0,59350.0,0.04918608]
[1725044285409,0.19,59354.0,59348.0,0.3608]
[1725044285616,0.19,59354.0,59349.0,0.1441]
[1725044286111,0.19,59350.0,59348.0,0.3608]
[1725044286708,0.08426,59349.0,59348.0,0.3608]
[1725044287008,0.04209915,59349.0,59348.0,0.3608]
[1725044290407,0.084262,59347.0,59346.0,0.29564175]
[1725044291111,0.084262,59347.0,59346.0,1.95196175]
[1725044291314,0.084262,59347.0,59346.0,1.35196175]
[1725044291512,0.084262,59347.0,59346.0,1.16196175]
[1725044291711,0.084262,59347.0,59346.0,1.76196175]
[1725044292718,0.084262,59347.0,59346.0,0.65644175]
[1725044293109,0.274262,59347.0,59346.0,0.65644175]
[1725044294714,0.084262,59347.0,59346.0,0.65644175]
[1725044294912,0.084262,59347.0,59346.0,0.64865263]
[1725044295612,0.084262,59347.0,59346.0,0.65638442]
[1725044296416,0.274262,59347.0,59346.0,0.50595263]
[1725044296721,0.274262,59347.0,59346.0,0.36105263]
[1725044296922,0.719324,59347.0,59346.0,0.00025263]
[1725044298720,0.719324,59347.0,59346.0,6.3e-07]
[1725044298721,1.309106,59347.0,59346.0,6.3e-07]
[1725044298925,1.31700045,59347.0,59346.0,6.3e-07]
[1725044299315,1.32547885,59347.0,59346.0,6.3e-07]
[1725044300423,1.32547885,59347.0,59329.0,0.0658658]
[1725044300424,1.06421445,59347.0,59329.0,0.0658658]
[1725044300718,1.06421445,59347.0,59312.0,0.15944]
[1725044300719,0.9116,59330.0,59313.0,0.2049658]
[1725044300920,0.635109,59314.0,59313.0,0.1391]
[1725044301122,0.635109,59314.0,59304.0,0.58133629]
[1725044301123,0.084319,59307.0,59306.0,0.0658658]
[1725044301315,0.084319,59307.0,59303.0,0.0658658]
[1725044301316,0.084323,59304.0,59303.0,0.0658658]
[1725044301515,0.084328,59301.0,59298.0,0.00025284]
[1725044301715,0.084331,59299.0,59298.0,0.00025284]
[1725044303319,0.3608,59300.0,59298.0,0.00025284]
[1725044304822,0.084331,59299.0,59298.0,0.00025284]
[1725044305217,0.3608,59300.0,59298.0,0.00025284]
[1725044305720,0.084331,59299.0,59298.0,0.00025284]
[1725044306423,0.084324,59304.0,59298.0,0.00025284]
[1725044306628,0.36848664,59307.0,59298.0,0.00025284]
[1725044307017,0.3608,59307.0,59298.0,0.00025284]
[1725044307317,0.084328,59301.0,59298.0,0.00025284]
[1725044307918,0.3608,59307.0,59300.0,0.24]
[1725044308219,0.3608,59307.0,59306.0,0.084321]
[1725044309422,0.00025284,59309.0,59306.0,0.084321]
[1725044309423,0.3608,59308.0,59306.0,0.084321]
[1725044310330,0.00025284,59309.0,59307.0,0.084319]
[1725044310534,0.00025284,59309.0,59300.0,0.84]
[1725044310535,0.00025284,59309.0,59308.0,0.084318]
[1725044311030,0.00025284,59309.0,59308.0,1.190158]
[1725044312121,0.3257,59366.0,59308.0,1.190158]
[1725044312122,0.3608,59337.0,59308.0,1.4743736]
[1725044312335,0.084275,59339.0,59337.0,0.084276]
[1725044312522,0.36168,59344.0,59336.0,0.24]
[1725044312523,0.3608,59338.0,59336.0,0.24]
[1725044312831,0.445076,59338.0,59336.0,0.324278]
[1725044313328,0.3608,59338.0,59337.0,0.084277]
[1725044313527,0.084271,59341.0,59337.0,0.084277]
[1725044313831,0.084273,59340.0,59337.0,0.084277]
[1725044314631,0.08428,59335.0,59333.0,0.084282]
[1725044315531,0.3608,59338.0,59331.0,0.00025284]
[1725044315726,0.3608,59356.0,59340.0,0.084271]
[1725044315933,0.3608,59356.0,59352.0,0.24]
[1725044316933,0.3608,59356.0,59352.0,0.33190206]
[1725044317328,0.3608,59356.0,59352.0,0.24764706]
[1725044317627,0.084248,59357.0,59355.0,0.084251]
[1725044318128,0.3608,59359.0,59355.0,0.084251]
[1725044319834,0.084248,59357.0,59355.0,0.084251]
[1725044320432,0.3608,59359.0,59352.0,0.24]
[1725044320828,0.3608,59359.0,59358.0,0.084247]
[1725044321541,0.3608,59373.0,59358.0,1.045047]
[1725044321732,0.3608,59380.0,59370.0,0.24]
[1725044321733,0.445016,59380.0,59370.0,0.24]
[1725044321932,0.445016,59380.0,59369.0,0.3608]
[1725044321933,0.3608,59380.0,59376.0,0.24]
[1725044322235,0.3608,59380.0,59379.0,0.084217]
[1725044322942,0.445016,59380.0,59379.0,0.084217]
[1725044324725,0.3608,59380.0,59379.0,0.084217]
[1725044325239,0.3608,59390.0,59378.0,0.3608]
[1725044325444,0.084209,59385.0,59384.0,0.08421]
[1725044325644,0.3608,59390.0,59384.0,0.08421]
[1725044325939,0.084206,59387.0,59384.0,0.08421]
[1725044326139,0.084208,59386.0,59384.0,0.08421]
[1725044327144,0.36866361,59390.0,59381.0,0.24]
[1725044327447,0.36866361,59390.0,59381.0,0.324214]
[1725044327641,0.084209,59385.0,59381.0,0.324214]
[1725044327943,0.08421,59384.0,59381.0,0.324214]
[1725044328340,0.36866361,59390.0,59381.0,0.324214]
[1725044328547,0.084217,59379.0,59378.0,0.36105262]
[1725044330237,0.084217,59379.0,59378.0,0.00025262]
[1725044333940,0.084216,59380.0,59379.0,0.084214]
[1725044334239,0.084216,59380.0,59379.0,0.274214]
[1725044335240,0.084216,59380.0,59379.0,0.19]
[1725044336349,0.084216,59380.0,59379.0,0.274217]
[1725044342240,0.08421,59384.0,59379.0,0.274217]
[1725044342456,0.08421,59384.0,59383.0,0.274211]
[1725044346155,0.19,59396.0,59383.0,0.274211]
[1725044346156,0.084206,59387.0,59386.0,0.084205]
[1725044346453,0.084206,59387.0,59386.0,0.274205]
[1725044346642,0.084202,59391.0,59390.0,0.0842]
[1725044346847,0.084202,59391.0,59390.0,0.2742]
[1725044347051,0.084196,59395.0,59394.0,0.084194]
[1725044347251,0.084196,59395.0,59394.0,0.274194]
[1725044347754,0.084196,59395.0,59394.0,0.19]
[1725044347949,0.084199,59392.0,59391.0,0.19]
[1725044348257,0.168398,59392.0,59391.0,0.19]
[1725044348459,0.3608,59392.0,59386.0,0.0658658]
[1725044348649,0.445006,59387.0,59386.0,0.084207]
[1725044348950,0.445006,59387.0,59386.0,0.274207]
[1725044348951,0.084206,59387.0,59386.0,0.274207]
[1725044349153,0.084206,59387.0,59386.0,0.28192101]
[1725044349355,0.084206,59387.0,59386.0,0.26357981]
[1725044349745,0.445006,59387.0,59386.0,0.19771401]
[1725044350146,0.084206,59387.0,59386.0,0.19771401]
[1725044350748,0.00782204,59397.0,59391.0,0.0842]
[1725044350749,0.084198,59393.0,59391.0,0.0842]
[1725044351058,0.084196,59394.0,59393.0,0.084194]
[1725044351262,0.084192,59397.0,59396.0,0.084193]
[1725044351455,0.084192,59397.0,59396.0,0.274193]
[1725044351647,0.41858038,59400.0,59396.0,0.274193]
[1725044351648,0.05,59400.0,59399.0,0.084189]
[1725044351848,0.05,59400.0,59399.0,0.274189]
[1725044353756,0.4108,59400.0,59399.0,0.274189]
[1725044353955,0.494987,59400.0,59399.0,0.274189]
[1725044355651,0.855787,59400.0,59399.0,0.274189]
[1725044355857,0.494987,59400.0,59399.0,0.274189]
[1725044356562,0.494987,59400.0,59399.0,0.28185191]
[1725044357060,0.084191,59397.0,59396.0,0.19]
[1725044357553,0.084196,59394.0,59393.0,0.19]
[1725044357762,0.444996,59394.0,59393.0,0.19]
[1725044358351,0.444996,59394.0,59391.0,0.0842]
[1725044358352,0.084199,59392.0,59391.0,0.0842]
[1725044359463,0.1684,59391.0,59390.0,0.19]
[1725044362351,0.168402,59390.0,59389.0,0.00767757]
[1725044362660,0.168406,59389.0,59388.0,0.00025262]
[1725044363360,0.084203,59389.0,59388.0,0.08445662]
[1725044369363,0.168406,59389.0,59388.0,0.00025262]
[1725044371053,0.084203,59389.0,59388.0,0.00025262]
[1725044371259,0.168406,59389.0,59388.0,0.00025262]
[1725044378260,0.084203,59389.0,59388.0,0.00025262]
[1725044378467,0.084203,59389.0,59388.0,0.08445662]
[1725044379364,0.571199,59392.0,59391.0,0.0842]
[1725044379665,0.571199,59392.0,59391.0,0.2742]
[1725044379666,0.487,59392.0,59391.0,0.2742]
[1725044383166,0.487,59392.0,59391.0,0.3584]
[1725044388272,0.487,59392.0,59391.0,1.46352]
[1725044388867,0.4865516,59392.0,59391.0,1.46352]
[1725044389577,0.4865516,59392.0,59391.0,0.3584]
[1725044389967,0.4865516,59392.0,59391.0,0.2742]
[1725044394577,0.23679767,59392.0,59391.0,0.2742]
[1725044396678,0.05,59400.0,59399.0,0.084189]
[1725044396873,0.05,59400.0,59399.0,0.274189]
[1725044397982,0.1373,59411.0,59410.0,0.084173]
[1725044397983,0.221472,59411.0,59410.0,0.084173]
[1725044398175,0.084172,59411.0,59410.0,0.274173]
[1725044398376,0.1359,59420.0,59410.0,0.274173]
[1725044398377,0.084168,59414.0,59413.0,0.084167]
[1725044398688,0.084168,59414.0,59413.0,0.274167]
[1725044399274,0.084163,59417.0,59414.0,0.084167]
[1725044399573,0.084163,59417.0,59413.0,0.19]
[1725044399772,0.084163,59417.0,59408.0,0.51932]
[1725044399773,0.084163,59417.0,59416.0,0.19]
[1725044400274,0.50492,59417.0,59410.0,0.19]
[1725044400476,0.3608,59411.0,59387.0,0.3608]
[1725044400681,0.19,59398.0,59387.0,0.3608]
[1725044400979,0.3608,59402.0,59395.0,0.19]
[1725044401182,0.444993,59396.0,59395.0,0.19]
[1725044401382,0.084193,59396.0,59395.0,0.19]
[1725044401985,0.1684,59391.0,59390.0,6.2e-07]
[1725044402288,0.1684,59391.0,59369.0,0.3608]
[1725044402289,0.3608,59391.0,59381.0,0.19]
[1725044402493,0.084213,59382.0,59381.0,0.19]
[1725044402884,0.084213,59382.0,59370.0,0.6]
[1725044403183,0.3608,59381.0,59375.0,0.19]
[1725044403379,0.3608,59381.0,59370.0,0.00025262]
[1725044403380,0.084228,59372.0,59370.0,0.00025262]
[1725044403777,0.00025262,59382.0,59370.0,0.00025262]
[1725044403969,0.00025262,59382.0,59376.0,0.3608]
[1725044404176,0.00025262,59382.0,59381.0,0.19]
[1725044404482,0.08446562,59382.0,59381.0,0.19]
[1725044406474,0.08446562,59382.0,59377.0,0.19]
[1725044406679,0.08446562,59382.0,59370.0,0.00025262]
[1725044406680,0.084218,59378.0,59373.0,0.19]
[1725044406890,0.1302,59377.0,59373.0,0.19]
[1725044407181,0.1302,59377.0,59370.0,0.00025262]
[1725044407182,0.1302,59377.0,59370.0,0.00807672]
[1725044407387,0.3608,59381.0,59374.0,0.5508]
[1725044407572,0.084223,59375.0,59374.0,0.3608]
[1725044407778,0.05561231,59380.0,59374.0,0.3608]
[1725044407979,0.084223,59375.0,59374.0,0.3608]
[1725044408285,0.084223,59375.0,59374.0,0.5508]
[1725044408488,0.08422,59377.0,59374.0,0.5508]
[1725044408678,0.08422,59377.0,59374.0,0.635024]
[1725044409289,0.084219,59378.0,59376.0,0.084221]
[1725044410382,0.491,59381.0,59374.0,0.5508]
[1725044410590,0.08446562,59382.0,59381.0,0.084214]
[1725044410591,0.00025262,59382.0,59381.0,0.084214]
[1725044411682,0.08446562,59382.0,59381.0,0.6]
[1725044412286,0.168446,59375.0,59374.0,0.3608]
[1725044412488,0.084228,59371.0,59366.0,0.084235]
[1725044412786,0.084228,59371.0,59370.0,0.36105262]
[1725044413179,0.084228,59371.0,59370.0,0.36864264]
[1725044413476,0.084228,59371.0,59370.0,0.36105262]
[1725044416788,0.168456,59371.0,59370.0,0.36105262]
[1725044418885,0.084228,59371.0,59370.0,0.36105262]
[1725044420779,0.168456,59371.0,59370.0,0.00025262]
[1725044422797,0.084228,59371.0,59370.0,0.00025262]
[1725044423490,0.084228,59371.0,59370.0,0.08448262]
[1725044425989,0.084228,59371.0,59370.0,0.00025262]
[1725044428298,0.00760779,59378.0,59370.0,0.00025262]
[1725044428299,0.00088,59388.0,59381.0,0.084214]
[1725044428497,0.08446562,59382.0,59381.0,0.7216]
[1725044428701,0.08446562,59382.0,59381.0,0.3608]
[1725044428997,0.08446562,59382.0,59381.0,0.9608]
[1725044429195,0.08446562,59382.0,59381.0,0.6]
[1725044430000,0.084217,59381.0,59380.0,0.084215]
[1725044430394,0.084217,59381.0,59380.0,0.684215]
[1725044431595,0.084217,59381.0,59380.0,0.6]
[1725044432506,0.084217,59381.0,59380.0,0.684216]
[1725044432894,0.084217,59381.0,59380.0,0.874216]
[1725044433409,0.00025262,59382.0,59381.0,0.084214]
[1725044433801,0.08446562,59382.0,59381.0,0.084214]
[1725044433997,0.168428,59381.0,59380.0,0.60104]
[1725044434198,0.084218,59378.0,59377.0,0.3608]
[1725044434896,0.084224,59374.0,59373.0,0.93342]
[1725044435093,0.168448,59374.0,59373.0,0.00092]
[1725044435300,0.084228,59371.0,59370.0,0.00025262]
[1725044435805,0.084228,59371.0,59370.0,0.27448262]
[1725044436105,0.27446562,59382.0,59370.0,1.29557262]
[1725044436106,0.00025262,59382.0,59370.0,1.29557262]
[1725044436293,0.00025262,59382.0,59381.0,0.635014]
[1725044438998,0.00025262,59382.0,59381.0,0.3608]
[1725044438999,0.16867862,59382.0,59381.0,0.3608]
[1725044439503,0.16867862,59382.0,59370.0,0.50465262]
[1725044439504,0.084228,59371.0,59370.0,0.50465262]
[1725044439707,0.084228,59371.0,59370.0,0.36873624]
[1725044440500,0.084228,59371.0,59370.0,0.36105262]
[1725044441302,0.168456,59371.0,59370.0,0.36105262]
[1725044442807,0.084228,59371.0,59370.0,0.44528262]
[1725044443304,0.084228,59371.0,59370.0,0.36105262]
[1725044444307,0.168456,59371.0,59370.0,0.36105262]
[1725044445004,0.589548,59371.0,59370.0,0.36105262]
[1725044445209,0.673776,59371.0,59370.0,0.36105262]
[1725044445713,0.589548,59371.0,59370.0,0.36105262]
[1725044445912,0.673776,59371.0,59370.0,0.00025262]
[1725044446313,1.118804,59371.0,59370.0,0.00025262]
[1725044446619,1.718804,59371.0,59370.0,0.00025262]
[1725044447114,1.718804,59371.0,59370.0,6.2e-07]
[1725044447322,0.08426,59349.0,59343.0,0.145]
[1725044447527,0.084267,59344.0,59343.0,0.145]
[1725044447815,0.084275,59338.0,59337.0,0.00626861]
[1725044448017,0.084275,59338.0,59334.0,0.274281]
[1725044448219,0.084275,59338.0,59335.0,0.084279]
[1725044448416,0.19025262,59342.0,59335.0,0.084279]
[1725044449014,0.19025262,59342.0,59334.0,0.19]
[1725044449015,0.084276,59338.0,59336.0,0.084278]
[1725044449205,0.00025262,59342.0,59334.0,0.19]
[1725044449714,0.00025262,59342.0,59335.0,0.6]
[1725044450109,0.084278,59336.0,59335.0,0.6]
[1725044452602,0.084278,59336.0,59335.0,0.684279]
[1725044452808,0.084273,59340.0,59335.0,0.6]
[1725044453008,0.084273,59340.0,59339.0,0.19]
[1725044453215,0.084273,59340.0,59337.0,0.3608]
[1725044453216,0.084275,59338.0,59337.0,0.3608]
[1725044453614,0.274275,59338.0,59337.0,0.3608]
[1725044455511,0.084275,59338.0,59337.0,0.3608]
[1725044456025,0.14972068,59341.0,59337.0,0.3608]
[1725044456214,0.084275,59338.0,59337.0,0.3608]
[1725044456824,0.084278,59336.0,59335.0,0.60088]
[1725044457011,0.084278,59336.0,59335.0,0.6]
[1725044457821,0.084278,59336.0,59335.0,0.60644298]
[1725044458814,0.084278,59336.0,59331.0,0.22953762]
[1725044458815,0.084284,59332.0,59331.0,0.22953762]
[1725044459411,0.084284,59332.0,59331.0,0.83590303]
[1725044459825,0.084284,59332.0,59331.0,1.19670303]
[1725044461213,0.084284,59332.0,59331.0,1.11241803]
[1725044461415,0.252852,59332.0,59331.0,0.00025262]
[1725044461620,1.632776,59332.0,59331.0,6.2e-07]
[1725044461820,1.632776,59332.0,59307.0,0.67668]
[1725044461821,0.084295,59324.0,59313.0,0.08431]
[1725044462019,0.19,59314.0,59309.0,0.084315]
[1725044462220,0.19,59314.0,59310.0,0.084313]
[1725044462221,0.084314,59311.0,59310.0,0.084313]
[1725044462421,0.19,59314.0,59310.0,0.6]
[1725044462619,0.19,59314.0,59312.0,0.084311]
[1725044462620,0.084312,59313.0,59312.0,0.084311]
[1725044462819,0.00025285,59318.0,59312.0,0.3608]
[1725044463021,0.00025285,59318.0,59315.0,0.19]
[1725044463427,0.00025285,59318.0,59317.0,0.084305]
[1725044463727,0.00025285,59318.0,59317.0,0.445105]
[1725044463917,0.1365,59338.0,59317.0,1.550865]
[1725044463918,0.084291,59327.0,59317.0,1.550865]
[1725044464120,0.084291,59327.0,59326.0,0.084292]
[1725044464516,0.5508,59333.0,59329.0,0.084288]
[1725044464517,0.084286,59331.0,59329.0,0.084288]
[1725044464720,0.084286,59331.0,59326.0,0.1443]
[1725044464721,0.084286,59331.0,59330.0,0.084287]
[1725044464928,0.5508,59333.0,59328.0,0.084286]
[1725044465128,0.19025285,59336.0,59330.0,0.084285]
[1725044465328,0.19678152,59336.0,59330.0,0.084285]
[1725044465627,0.084284,59333.0,59332.0,0.084282]
[1725044465829,0.00025285,59336.0,59335.0,0.084279]
[1725044466032,0.24,59353.0,59335.0,0.24]
[1725044466327,0.084268,59343.0,59342.0,0.084269]
[1725044466527,0.3608,59348.0,59338.0,0.3608]
[1725044466727,0.3608,59348.0,59332.0,0.502]
[1725044466728,0.3608,59342.0,59333.0,0.084282]
[1725044466927,0.3608,59342.0,59332.0,0.3608]
[1725044466928,0.084275,59338.0,59332.0,0.3608]
[1725044467131,0.084282,59333.0,59332.0,0.36105285]
[1725044468432,0.168564,59333.0,59332.0,0.36105285]
[1725044468841,0.168564,59333.0,59332.0,0.00025285]
[1725044469727,0.168564,59333.0,59308.0,0.00627193]
[1725044469728,0.084316,59309.0,59308.0,0.00627193]
[1725044469927,0.24,59312.0,59305.0,0.3608]
[1725044470122,0.084321,59306.0,59305.0,0.3608]
[1725044470329,0.084327,59302.0,59298.0,0.084331]
[1725044471536,0.084327,59302.0,59299.0,0.08433]
[1725044472244,0.084328,59301.0,59296.0,0.18749736]
[1725044472440,0.6008,59303.0,59296.0,0.18749736]
[1725044472441,0.24128,59303.0,59296.0,0.18749736]
[1725044472623,0.24,59303.0,59296.0,0.14444636]
[1725044472935,0.084328,59301.0,59296.0,0.22878136]
[1725044473830,0.084331,59299.0,59296.0,0.22878136]
[1725044474145,0.36200001,59303.0,59296.0,0.14444636]
[1725044474438,0.084328,59302.0,59299.0,0.084331]
[1725044475338,0.084328,59302.0,59300.0,0.084329]
[1725044475529,0.08457385,59306.0,59301.0,0.324328]
[1725044475733,0.00025285,59306.0,59305.0,0.324322]
[1725044476038,0.00025285,59306.0,59305.0,0.830162]
[1725044476237,0.00025285,59306.0,59305.0,2.030162]
[1725044476736,0.084301,59320.0,59305.0,1.94584]
[1725044476936,0.084304,59318.0,59317.0,0.3608]
[1725044477134,0.084304,59318.0,59317.0,0.445105]
[1725044477326,0.084304,59318.0,59317.0,0.3608]
[1725044477633,0.084304,59318.0,59317.0,0.9608]
[1725044477833,0.084304,59318.0,59307.0,0.04929736]
[1725044477834,0.168622,59313.0,59312.0,0.00025285]
[1725044478135,0.769422,59313.0,59312.0,0.00025285]
[1725044478323,1.875222,59313.0,59312.0,0.00025285]
[1725044478730,0.084324,59304.0,59294.0,0.084337]
[1725044478926,0.084324,59304.0,59295.0,0.084336]
[1725044478927,0.084335,59296.0,59295.0,0.084336]
[1725044479138,0.6008,59300.0,59292.0,0.36723853]
[1725044479139,0.3608,59300.0,59292.0,0.36723853]
[1725044479435,0.3608,59300.0,59293.0,0.24]
[1725044479637,0.084329,59301.0,59293.0,0.24]
[1725044479843,0.00025285,59302.0,59298.0,0.08235629]
[1725044480136,0.00025285,59302.0,59300.0,0.084328]
[1725044480440,0.084328,59301.0,59300.0,0.084328]
[1725044481443,0.084328,59301.0,59300.0,0.29520759]
[1725044481633,0.084328,59301.0,59300.0,0.29522729]
[1725044481834,0.084328,59301.0,59300.0,0.08237648]
[1725044482137,0.084331,59299.0,59298.0,0.08237648]
[1725044482338,0.324331,59299.0,59298.0,0.12852662]
[1725044482635,0.324331,59299.0,59295.0,0.08238759]
[1725044482636,0.084335,59296.0,59295.0,0.08238759]
[1725044482831,0.084335,59296.0,59292.0,0.3608]
[1725044482832,0.24,59296.0,59293.0,0.08238759]
[1725044483033,0.084338,59294.0,59293.0,0.08238759]
[1725044483236,0.084341,59292.0,59291.0,0.08264044]
[1725044483631,0.769482,59292.0,59291.0,0.00025285]
[1725044484233,0.769482,59292.0,59291.0,0.06620016]
[1725044484831,0.769482,59292.0,59291.0,0.00025285]
[1725044485044,1.875442,59292.0,59291.0,0.06618019]
[1725044485237,1.875442,59292.0,59291.0,0.00025285]
[1725044485830,1.875442,59292.0,59291.0,0.0661675]
[1725044486431,1.275442,59292.0,59291.0,0.00025285]
[1725044486635,1.875442,59292.0,59291.0,0.00025285]
[1725044488134,2.115442,59292.0,59291.0,0.04943376]
[1725044488449,1.006,59291.0,59282.0,0.04944994]
[1725044488738,1.006,59291.0,59267.0,0.42745501]
[1725044488739,0.08436,59278.0,59277.0,0.04944994]
[1725044488940,0.68516,59278.0,59275.0,0.04944994]
[1725044489134,0.324363,59276.0,59274.0,0.04944994]
[1725044489339,0.084368,59273.0,59272.0,0.0659171]
[1725044489539,0.324368,59273.0,59272.0,0.0659171]
[1725044490637,0.168738,59272.0,59271.0,0.0659171]
[1725044490845,0.08437,59271.0,59270.0,0.0659171]
[1725044491236,0.084372,59270.0,59269.0,0.06617017]
[1725044491438,0.084372,59270.0,59269.0,0.06612119]
[1725044491637,0.084372,59270.0,59269.0,0.00025307]
[1725044492139,0.3608,59274.0,59269.0,0.00025307]
[1725044492443,0.3608,59274.0,59271.0,0.06586387]
[1725044492444,0.084369,59272.0,59271.0,0.06586387]
[1725044492634,0.084369,59272.0,59270.0,0.084371]
[1725044492635,0.08437,59271.0,59270.0,0.084371]
[1725044493446,0.084361,59278.0,59277.0,0.08436]
[1725044494046,0.324361,59278.0,59277.0,0.08436]
[1725044494741,0.084361,59278.0,59277.0,0.08436]
[1725044495636,0.3608,59284.0,59277.0,0.3608]
[1725044495839,0.08436,59278.0,59277.0,0.44516]
[1725044496240,0.08436,59278.0,59277.0,1.04516]
[1725044496843,0.08460907,59281.0,59280.0,0.084358]
[1725044497148,0.00025307,59281.0,59280.0,0.674796]
[1725044497533,0.00025307,59281.0,59280.0,0.590438]
[1725044498336,0.00025307,59281.0,59280.0,0.084358]
[1725044501049,0.084336,59295.0,59294.0,0.084338]
[1725044501644,0.084336,59295.0,59287.0,0.3608]
[1725044501645,0.08434,59293.0,59291.0,0.084341]
[1725044502148,0.3608,59297.0,59296.0,0.084335]
[1725044502747,0.445133,59297.0,59296.0,0.084335]
[1725044503245,0.084333,59297.0,59296.0,0.084335]
[1725044503448,0.3608,59318.0,59297.0,0.168666]
[1725044503641,0.3608,59318.0,59311.0,0.084313]
[1725044503642,0.084311,59313.0,59311.0,0.084313]
[1725044503948,0.084311,59313.0,59307.0,0.1324]
[1725044504343,0.445104,59318.0,59307.0,0.1324]
[1725044504537,0.084305,59317.0,59312.0,0.084311]
[1725044504941,0.084307,59316.0,59312.0,0.084311]
[1725044505642,0.084307,59316.0,59313.0,0.08431]
[1725044506243,0.084309,59314.0,59307.0,0.22349928]
[1725044506445,0.3608,59312.0,59307.0,0.00678028]
[1725044506652,0.084318,59308.0,59307.0,0.00025307]
[1725044507157,0.084318,59308.0,59292.0,0.2801]
[1725044507158,0.084339,59293.0,59292.0,0.00654192]
[1725044507449,0.084339,59293.0,59291.0,0.1372]
[1725044507949,0.084339,59293.0,59291.0,0.14352891]
[1725044508254,0.084339,59293.0,59291.0,0.22787091]
[1725044508552,0.084334,59297.0,59292.0,0.3608]
[1725044508749,0.084335,59296.0,59293.0,0.084338]
[1725044508947,0.084339,59293.0,59292.0,0.3608]
[1725044509157,0.445139,59293.0,59281.0,0.3608]
[1725044509454,0.084348,59287.0,59283.0,0.084353]
[1725044509646,0.084348,59287.0,59284.0,0.084352]
[1725044510046,0.084342,59291.0,59288.0,0.084346]
[1725044510447,0.24,59297.0,59284.0,0.084352]
[1725044510648,0.00025307,59298.0,59284.0,0.084352]
[1725044510649,0.084347,59288.0,59284.0,0.084352]
[1725044511255,0.084348,59287.0,59284.0,0.084352]
[1725044511447,0.084348,59287.0,59281.0,0.3608]
[1725044512553,0.084348,59287.0,59282.0,0.084354]
[1725044512851,0.084348,59287.0,59281.0,0.3608]
[1725044513057,0.084343,59291.0,59285.0,0.08435]
[1725044513650,0.084345,59290.0,59285.0,0.08435]
[1725044513849,0.24,59288.0,59279.0,0.00628259]
[1725044514049,0.529496,59287.0,59275.0,0.1397]
[1725044514466,1.635496,59287.0,59275.0,0.1397]
[1725044515254,1.635496,59287.0,59274.0,0.3286]
[1725044515760,1.635496,59287.0,59278.0,0.08436]
[1725044515761,0.529496,59287.0,59278.0,0.08436]
[1725044517649,0.529496,59287.0,59281.0,0.084356]
[1725044517854,0.529496,59287.0,59276.0,0.3608]
[1725044517855,0.445148,59287.0,59282.0,0.588454]
[1725044518056,0.529496,59287.0,59282.0,0.1433]
[1725044518456,0.529496,59287.0,59276.0,0.41015295]
[1725044518663,1.719844,59287.0,59273.0,0.04935295]
[1725044518846,1.719844,59287.0,59272.0,0.04935295]
[1725044519165,1.719844,59287.0,59286.0,7e-08]
[1725044520054,1.119844,59287.0,59286.0,7e-08]
[1725044520548,0.445148,59287.0,59286.0,7e-08]
[1725044520751,0.445148,59287.0,59286.0,0.08434907]
[1725044520951,0.084348,59287.0,59286.0,7e-08]
[1725044521460,0.084348,59287.0,59286.0,0.44514907]
[1725044521654,0.084343,59291.0,59286.0,0.36080007]
[1725044521851,0.084344,59290.0,59289.0,0.084345]
[1725044522464,0.084345,59289.0,59286.0,0.36080007]
[1725044522662,0.44514,59293.0,59289.0,0.084344]
[1725044522853,0.084342,59292.0,59291.0,0.084342]
[1725044525363,0.09640954,59301.0,59291.0,0.3608]
[1725044525565,0.084341,59292.0,59290.0,0.084342]
[1725044525862,0.084329,59300.0,59290.0,0.084342]
[1725044526065,0.084348,59287.0,59286.0,7e-08]
[1725044530368,0.168696,59287.0,59286.0,7e-08]
[1725044531469,0.253044,59287.0,59286.0,7e-08]
[1725044533168,0.084348,59287.0,59286.0,7e-08]
[1725044533356,0.168696,59287.0,59286.0,7e-08]
[1725044534074,0.084348,59287.0,59286.0,7e-08]
[1725044534266,0.168696,59287.0,59286.0,7e-08]
[1725044535869,0.084348,59287.0,59286.0,7e-08]
[1725044536771,0.08459407,59292.0,59291.0,0.084342]
[1725044536974,0.084342,59291.0,59290.0,0.24]
[1725044537365,0.084348,59287.0,59286.0,0.14320007]
[1725044537767,0.084348,59287.0,59286.0,7e-08]
[1725044537968,0.084348,59287.0,59286.0,0.24000007]
[1725044538169,0.084344,59290.0,59289.0,0.084345]
[1725044538572,0.00025307,59292.0,59289.0,0.3608]
[1725044538779,0.00025307,59292.0,59291.0,0.324342]
[1725044539874,0.08459407,59292.0,59291.0,0.084342]
[1725044540081,0.084343,59290.0,59289.0,0.3608]
[1725044540579,0.168686,59290.0,59289.0,0.3608]
[1725044541380,0.168686,59290.0,59286.0,7e-08]
[1725044541381,0.168696,59287.0,59286.0,7e-08]
[1725044541769,0.00025307,59292.0,59291.0,0.084342]
[1725044542070,0.00025307,59292.0,59291.0,0.324342]
[1725044542674,0.00025307,59292.0,59291.0,0.084342]
[1725044542872,0.00025307,59292.0,59291.0,0.324342]